bitfinex-derivatives/quotes_SOLF0:USTF0_20240924
["timestamp","ask_amount","ask_price","bid_price","bid_amount"]
[1727211819981,2.4036,148.88,148.71,3.3618]
[1727211819982,3.3614,148.74,148.71,3.3618]
[1727211820285,9.3,148.75,148.72,6.49036416]
[1727211820484,9.3,148.76,148.71,9.3]
[1727211820982,3.3612,148.75,148.73,3.3616]
[1727211821698,12.661,148.76,148.73,3.3616]
[1727211821879,1.1898,148.81,148.73,9.3]
[1727211821880,9.3,148.78,148.73,9.3]
[1727211822579,3.3607,148.77,148.73,9.3]
[1727211822776,3.3607,148.77,148.75,9.3]
[1727211822982,3.3605,148.78,148.76,3.3609]
[1727211825379,1.1898,148.86,148.77,9.3]
[1727211825583,9.3,148.83,148.79,9.3]
[1727211826394,3.3596,148.82,148.79,9.3]
[1727211827491,3.3598,148.81,148.79,9.3]
[1727211828093,3.3596,148.82,148.8,9.3]
[1727211829591,3.3598,148.81,148.79,9.3]
[1727211829801,9.3,148.82,148.78,3.3604]
[1727211830091,3.3601,148.8,148.77,3.3606]
[1727211830298,12.61618586,148.82,148.77,9.3]
[1727211830496,13.42505384,148.89,148.8,9.3]
[1727211830799,3.3598,148.82,148.8,9.3]
[1727211832801,3.3598,148.81,148.8,9.3]
[1727211835406,3.3596,148.82,148.8,9.3]
[1727211835802,1.42,148.81,148.8,9.3]
[1727211836312,1.42,148.81,148.79,12.6601]
[1727211837413,1.42,148.81,148.8,12.66]
[1727211838300,3.359,148.85,148.82,9.3]
[1727211838496,9.3,148.85,148.79,6.48879962]
[1727211838808,9.3,148.85,148.8,9.3]
[1727211839405,9.3,148.85,148.8,12.6598]
[1727211839706,9.3,148.84,148.79,9.3]
[1727211840207,3.3594,148.83,148.79,12.6601]
[1727211840708,9.3,148.81,148.78,4.7336]
[1727211841931,12.91,148.81,148.78,4.7336]
[1727211842309,4.61,148.8,148.78,4.7336]
[1727211844113,4.61,148.8,148.78,14.0336]
[1727211845206,4.61,148.8,148.79,3.3602]
[1727211845509,4.61,148.8,148.79,12.6602]
[1727211848502,4.61,148.8,148.79,3.3602]
[1727211848707,4.61,148.8,148.79,12.6602]
[1727211860412,4.61,148.8,148.79,3.3602]
[1727211860608,4.61,148.8,148.79,12.6602]
[1727211866218,8.22,148.8,148.79,12.6602]
[1727211866412,8.22,148.8,148.79,3.3602]
[1727211892434,8.22,148.8,148.79,9.86053556]
[1727211892635,8.22,148.8,148.79,3.3602]
[1727211893228,8.22,148.8,148.79,9.86270758]
[1727211894542,11.58,148.8,148.79,6.50250758]
[1727211894739,8.22,148.8,148.71,3.9501]
[1727211894935,8.22,148.8,148.72,6.50640373]
[1727211895243,3.3607,148.77,148.74,3.3612]
[1727211895439,3.3607,148.77,148.75,6.50640373]
[1727211895742,3.3607,148.77,148.74,3.3612]
[1727211895934,3.3607,148.77,148.75,6.50581794]
[1727211896139,3.3608,148.77,148.71,3.9501]
[1727211896640,3.3608,148.77,148.72,6.50454255]
[1727211896839,3.3608,148.77,148.73,6.50454255]
[1727211897032,3.3608,148.77,148.74,9.86584255]
[1727211897338,12.8108,148.77,148.75,6.50454255]
[1727211897640,12.8108,148.77,148.74,3.3613]
[1727211897836,9.45,148.77,148.75,6.50347181]
[1727211898031,12.80059637,148.77,148.71,2.6438]
[1727211898238,12.80059637,148.77,148.72,6.50139059]
[1727211898445,12.80059637,148.77,148.72,3.3617]
[1727211898446,3.3613,148.75,148.72,3.3617]
[1727211898744,12.80059637,148.77,148.69,59.43778245]
[1727211898941,12.80059637,148.77,148.7,6.50225729]
[1727211899142,12.80059637,148.77,148.69,59.43778245]
[1727211899143,1.397,148.76,148.69,59.43778245]
[1727211899642,3.3622,148.71,148.69,59.43778245]
[1727211902945,1.397,148.76,148.59,338.0]
[1727211903142,1.397,148.76,148.53,9.84763586]
[1727211903143,1.1924,148.75,148.6,10.45243499]
[1727211903363,1.397,148.76,148.61,6.48943499]
[1727211903567,1.397,148.76,148.62,6.48943499]
[1727211903742,1.397,148.76,148.6,7.27817107]
[1727211903743,4.78247759,148.76,148.63,6.48943499]
[1727211904847,5.97487759,148.76,148.64,6.48943499]
[1727211905049,3.3626,148.69,148.65,3.3633]
[1727211906045,3.3623,148.7,148.66,3.3631]
[1727211909049,3.3623,148.7,148.61,6.4707954]
[1727211909943,3.3623,148.7,148.6,7.27817107]
[1727211910147,3.3623,148.7,148.61,6.46618127]
[1727211910851,3.3623,148.7,148.67,3.3629]
[1727211912845,9.45,148.69,148.67,3.3629]
[1727211913751,9.45,148.69,148.6,7.27817107]
[1727211914254,9.45,148.69,148.66,3.363]
[1727211918548,12.8125,148.69,148.66,3.363]
[1727211919252,12.8125,148.69,148.65,3.3633]
[1727211921247,12.8125,148.69,148.66,3.3632]
[1727211922059,3.3627,148.68,148.65,3.3633]
[1727211925348,12.8125,148.69,148.66,3.3631]
[1727211926950,9.2025,148.69,148.66,3.3631]
[1727211927762,9.2025,148.69,148.65,3.3633]
[1727211928657,3.61,148.68,148.6,3.963]
[1727211928863,7.04572637,148.68,148.6,3.963]
[1727211929262,3.3634,148.65,148.62,3.3639]
[1727211931655,8.1934,148.65,148.62,3.3639]
[1727211934072,4.83,148.65,148.62,3.3639]
[1727211934571,8.1934,148.65,148.62,3.3639]
[1727211937569,4.83,148.65,148.63,3.3638]
[1727211941276,4.83,148.65,148.62,3.364]
[1727211945572,8.1934,148.65,148.62,3.364]
[1727211955483,11.8034,148.65,148.62,3.364]
[1727211962190,8.44,148.65,148.63,3.3638]
[1727211965395,8.44,148.65,148.64,3.3636]
[1727211965888,8.44,148.65,148.63,3.3637]
[1727211970698,8.44,148.65,148.64,3.3636]
[1727211972399,6.279,148.65,148.64,3.3636]
[1727211972601,3.61,148.65,148.64,3.3636]
[1727211974095,3.61,148.65,148.64,9.85619753]
[1727211976693,3.61,148.65,148.64,6.49259753]
[1727211976894,3.61,148.65,148.6,3.963]
[1727211977117,3.61,148.65,148.61,6.49463533]
[1727211977398,3.61,148.65,148.6,3.963]
[1727211977992,3.364,148.63,148.6,3.963]
[1727211979395,3.3642,148.62,148.58,3.3649]
[1727211979604,3.3642,148.62,148.59,6.49585633]
[1727211979793,3.3642,148.62,148.58,3.3649]
[1727211980100,6.9742,148.62,148.58,3.3649]
[1727211982002,3.61,148.62,148.55,4.0915]
[1727211982209,3.61,148.62,148.56,6.4957737]
[1727211982502,3.3649,148.59,148.57,6.4957737]
[1727211982705,3.3649,148.59,148.55,7.457]
[1727211982905,3.3649,148.59,148.56,6.49549806]
[1727211983108,3.365,148.58,148.57,6.49549806]
[1727211983403,3.61,148.62,148.57,6.49440739]
[1727211983596,3.61,148.62,148.53,4.1517]
[1727211983597,3.61,148.62,148.55,3.41357012]
[1727211983794,3.61,148.62,148.53,4.1517]
[1727211983993,3.61,148.62,148.54,6.49413469]
[1727211984206,3.61,148.62,148.55,6.49413469]
[1727211984503,3.61,148.62,148.56,6.49413469]
[1727211984704,3.61,148.62,148.57,6.49413469]
[1727211984896,3.61,148.62,148.59,3.3646]
[1727211991208,7.29,148.62,148.59,3.3646]
[1727211994207,7.29,148.62,148.53,67.05445183]
[1727211994412,7.29,148.62,148.54,6.49582138]
[1727211994613,7.29,148.62,148.55,6.49582138]
[1727211994816,3.3644,148.61,148.57,3.3651]
[1727211995108,7.29,148.62,148.57,3.3651]
[1727211995312,7.29,148.62,148.53,67.05445183]
[1727211995521,7.29,148.62,148.54,6.49691681]
[1727211995811,7.29,148.62,148.55,6.49718697]
[1727211996007,3.3649,148.59,148.55,3.3655]
[1727211996213,7.29,148.62,148.53,66.96894425]
[1727211996511,7.29,148.62,148.54,6.49608946]
[1727211996701,3.3647,148.6,148.56,3.3653]
[1727212000314,7.29,148.62,148.55,3.3655]
[1727212000911,3.3649,148.59,148.55,3.3655]
[1727212001308,7.29,148.62,148.53,66.94189734]
[1727212001505,3.3643,148.61,148.53,66.94189734]
[1727212001711,3.3643,148.61,148.54,6.49018636]
[1727212001908,3.3643,148.61,148.57,3.3651]
[1727212002311,3.3643,148.61,148.57,3.365]
[1727212004510,6.9743,148.61,148.57,3.365]
[1727212006523,3.61,148.61,148.54,6.48729063]
[1727212006719,6.59,148.61,148.55,6.48729063]
[1727212006923,6.59,148.61,148.56,6.48729063]
[1727212007122,10.27,148.61,148.53,66.94189734]
[1727212007322,10.27,148.61,148.54,6.48680589]
[1727212007523,10.27,148.61,148.59,3.3646]
[1727212009324,13.6345,148.61,148.57,3.3651]
[1727212011230,13.6345,148.61,148.58,3.365]
[1727212011419,14.4545,148.61,148.58,3.365]
[1727212011820,14.4545,148.61,148.54,6.48628965]
[1727212012125,14.4545,148.61,148.57,3.3651]
[1727212015927,11.09,148.61,148.54,6.48552701]
[1727212016122,11.09,148.61,148.53,63.65603068]
[1727212016429,3.3649,148.59,148.55,3.3655]
[1727212018537,3.3654,148.57,148.54,3.3659]
[1727212018736,12.4362,148.61,148.53,60.87883068]
[1727212018943,13.8346,148.61,148.53,59.50433068]
[1727212020442,12.4362,148.61,148.53,62.91341734]
[1727212020647,3.3649,148.59,148.56,3.3654]
[1727212021139,11.09,148.61,148.54,1.3991]
[1727212021637,11.09,148.61,148.54,4.1084]
[1727212021833,3.3645,148.6,148.57,3.3651]
[1727212022035,7.48,148.61,148.54,4.1084]
[1727212022432,7.48,148.61,148.56,3.3652]
[1727212022433,3.3646,148.6,148.56,3.3652]
[1727212023844,3.61,148.59,148.56,3.3652]
[1727212024140,3.61,148.59,148.57,3.3652]
[1727212027443,4.92,148.59,148.57,3.3652]
[1727212029746,7.9,148.59,148.57,3.3652]
[1727212029945,7.9,148.59,148.58,3.365]
[1727212030341,1.4137,148.59,148.58,3.365]
[1727212033747,5.1037,148.59,148.58,3.365]
[1727212035655,1.3041,148.66,148.61,3.3641]
[1727212036046,3.3635,148.65,148.61,3.3641]
[1727212036246,3.3635,148.65,148.62,3.3639]
[1727212036649,3.3632,148.66,148.55,6.7313]
[1727212036852,3.3632,148.66,148.63,3.3637]
[1727212037044,0.82,148.65,148.63,3.3637]
[1727212037245,0.82,148.65,148.64,3.3636]
[1727212038144,0.82,148.65,148.63,3.3638]
[1727212038352,4.1834,148.65,148.63,3.3638]
[1727212038753,4.1834,148.65,148.62,3.364]
[1727212042963,4.1834,148.65,148.63,3.3638]
[1727212043160,0.82,148.65,148.63,3.3638]
[1727212045659,0.82,148.65,148.64,3.3636]
[1727212046858,3.3624,148.7,148.67,3.3628]
[1727212047765,3.3621,148.71,148.68,3.3627]
[1727212048067,1.3735,148.72,148.68,3.3627]
[1727212048265,1.3735,148.72,148.62,4.59759121]
[1727212048266,3.3626,148.69,148.62,4.59759121]
[1727212048558,1.3735,148.72,148.63,6.47987356]
[1727212048760,1.3735,148.72,148.62,4.59759121]
[1727212048963,1.3735,148.72,148.63,6.47926276]
[1727212049168,1.3735,148.72,148.64,6.47926276]
[1727212049460,3.3624,148.7,148.62,4.59759121]
[1727212049663,3.3624,148.7,148.63,6.47658801]
[1727212049862,3.3624,148.7,148.66,3.363]
[1727212054274,3.3625,148.69,148.65,3.3632]
[1727212056570,3.3624,148.7,148.62,4.59759121]
[1727212056976,3.3624,148.7,148.63,6.46198772]
[1727212057275,3.3621,148.71,148.67,3.3627]
[1727212061582,3.3621,148.71,148.68,3.3627]
[1727212065483,3.3621,148.71,148.69,3.3625]
[1727212065876,3.3621,148.71,148.62,4.59759121]
[1727212067889,3.3621,148.71,148.67,3.3628]
[1727212068592,3.3624,148.7,148.66,3.3631]
[1727212072493,1.3735,148.72,148.62,4.59759121]
[1727212072890,1.4021,148.71,148.62,4.59759121]
[1727212073210,1.4249,148.7,148.63,3.3638]
[1727212073889,3.3631,148.67,148.63,3.3638]
[1727212074494,3.3631,148.67,148.64,3.3635]
[1727212074693,3.3628,148.68,148.62,4.59759121]
[1727212075200,3.363,148.67,148.64,3.3635]
[1727212076994,3.3628,148.68,148.65,3.3634]
[1727212078801,3.3628,148.68,148.66,3.3632]
[1727212082292,1.4249,148.7,148.62,3.29699121]
[1727212082507,1.4249,148.7,148.58,338.0]
[1727212083205,3.3637,148.64,148.61,3.3641]
[1727212085493,3.3635,148.65,148.62,3.3639]
[1727212086693,1.3359,148.67,148.63,3.3637]
[1727212086891,1.3359,148.67,148.57,6.45564989]
[1727212087597,3.3636,148.65,148.61,3.3641]
[1727212090102,3.3636,148.65,148.62,3.364]
[1727212104709,3.3632,148.66,148.56,1.3997]
[1727212104909,1.3359,148.67,148.57,6.47813524]
[1727212105106,1.3359,148.67,148.58,6.47813524]
[1727212105313,1.3359,148.67,148.64,3.3636]
[1727212105513,4.6989,148.67,148.64,3.3636]
[1727212108020,3.3628,148.68,148.65,3.3632]
[1727212109517,3.3629,148.67,148.65,3.3632]
[1727212115031,3.3629,148.67,148.64,3.3635]
[1727212116224,1.4249,148.7,148.63,3.3638]
[1727212116225,3.3634,148.65,148.63,3.3638]
[1727212117633,3.3637,148.64,148.6,6.47646637]
[1727212117821,3.3637,148.64,148.59,1.3531]
[1727212118021,3.3637,148.64,148.6,6.47766182]
[1727212118224,3.3637,148.64,148.59,1.3531]
[1727212118426,3.3637,148.64,148.61,3.3642]
[1727212124733,1.4249,148.7,148.61,3.3642]
[1727212125437,3.3638,148.64,148.61,3.3642]
[1727212127830,3.38325186,148.68,148.57,59.48555021]
[1727212128132,1.3097,148.67,148.58,6.47681919]
[1727212128434,3.3644,148.61,148.59,3.3647]
[1727212148944,3.3644,148.61,148.57,59.48555021]
[1727212148945,3.3644,148.61,148.58,3.3649]
[1727212155654,3.3644,148.61,148.59,3.3647]
[1727212158545,3.3641,148.62,148.59,3.3647]
[1727212158749,1.3021,148.65,148.6,3.3643]
[1727212158951,1.3021,148.65,148.57,59.48555021]
[1727212159152,3.3632,148.66,148.58,6.49258463]
[1727212159359,1.3097,148.67,148.64,3.3635]
[1727212159659,1.3097,148.67,148.61,3.39874451]
[1727212159954,1.3097,148.67,148.65,3.3633]
[1727212160557,4.6727,148.67,148.65,3.3633]
[1727212161854,3.3628,148.68,148.65,3.3633]
[1727212169053,1.3879,148.7,148.62,3.39772171]
[1727212169260,1.3879,148.7,148.57,59.48555021]
[1727212169561,1.3879,148.7,148.58,6.48691143]
[1727212169761,3.3635,148.65,148.62,3.3639]
[1727212170563,3.3632,148.66,148.63,3.3637]
[1727212170855,3.363,148.67,148.64,3.3636]
[1727212171956,3.363,148.67,148.61,3.35240399]
[1727212171957,1.3879,148.7,148.61,3.35240399]
[1727212172266,1.3059,148.72,148.62,7.86885821]
[1727212172465,3.3623,148.7,148.67,3.3628]
[1727212173960,1.3059,148.72,148.67,3.3628]
[1727212174661,3.3624,148.7,148.67,3.3628]
[1727212178562,3.3624,148.7,148.68,3.3627]
[1727212179468,3.3621,148.71,148.69,3.3624]
[1727212181464,3.3621,148.71,148.68,3.3626]
[1727212182677,3.3621,148.71,148.64,1.3703]
[1727212182867,3.3621,148.71,148.69,3.3624]
[1727212183880,3.3621,148.71,148.68,3.3626]
[1727212184373,3.3621,148.71,148.64,1.3703]
[1727212184568,3.3621,148.71,148.68,3.3626]
[1727212184966,3.3619,148.72,148.69,3.3623]
[1727212185562,3.3619,148.72,148.7,3.3622]
[1727212188877,3.3616,148.73,148.7,3.3622]
[1727212189368,3.3618,148.72,148.69,3.3623]
[1727212191469,3.3616,148.73,148.7,3.3622]
[1727212191672,1.3376,148.75,148.64,7.8219165]
[1727212191973,1.3376,148.75,148.64,1.3703]
[1727212192177,3.3617,148.73,148.7,3.3622]
[1727212194076,1.3241,148.82,148.64,1.3703]
[1727212194372,6.26666404,148.81,148.64,339.3703]
[1727212194572,6.26666404,148.81,148.65,6.44135294]
[1727212194877,3.361,148.76,148.73,3.3614]
[1727212195968,3.361,148.76,148.74,3.3613]
[1727212196375,3.3608,148.77,148.74,3.3613]
[1727212199381,3.3609,148.76,148.74,3.3613]
[1727212199579,2.8221,148.81,148.71,3.35149798]
[1727212199781,2.8221,148.81,148.72,1.3387]
[1727212199984,3.3603,148.79,148.72,1.3387]
[1727212200184,2.8221,148.81,148.72,1.3387]
[1727212200376,2.8221,148.81,148.72,2.7545]
[1727212200574,3.3601,148.8,148.72,2.7545]
[1727212200885,1.4381,148.81,148.77,3.3605]
[1727212201183,3.36,148.8,148.77,3.3605]
[1727212201879,3.3603,148.79,148.76,3.3608]
[1727212202085,1.4381,148.81,148.72,2.7545]
[1727212203085,3.3601,148.8,148.72,2.7545]
[1727212204376,3.3602,148.79,148.72,2.7545]
[1727212205392,3.3602,148.79,148.76,3.3608]
[1727212208987,3.3601,148.8,148.77,3.3606]
[1727212209389,1.4381,148.81,148.77,3.3606]
[1727212209887,1.4381,148.81,148.76,3.3608]
[1727212209888,3.3602,148.79,148.76,3.3608]
[1727212215685,3.3607,148.77,148.72,2.7545]
[1727212216298,3.3605,148.78,148.75,3.3611]
[1727212216995,3.3604,148.79,148.76,3.3609]
[1727212220088,1.4381,148.81,148.72,1.3387]
[1727212220291,1.3695,148.8,148.72,1.3387]
[1727212220601,4.7297,148.8,148.75,3.361]
[1727212221402,4.7297,148.8,148.76,3.3608]
[1727212223303,1.4381,148.81,148.72,1.3387]
[1727212223596,2.735,148.85,148.72,1.3387]
[1727212224799,3.3594,148.83,148.8,3.3598]
[1727212229200,3.3592,148.84,148.81,3.3597]
[1727212230203,6.094,148.85,148.82,3.3595]
[1727212231105,3.3591,148.84,148.82,3.3595]
[1727212233308,3.3585,148.87,148.84,3.3591]
[1727212235209,3.3588,148.86,148.81,3.33075932]
[1727212235506,3.3588,148.86,148.75,6.7221]
[1727212235712,3.3588,148.86,148.83,3.3592]
[1727212236913,3.3585,148.87,148.84,3.359]
[1727212244014,2.7715,148.9,148.83,3.3592]
[1727212244316,2.7715,148.9,148.8,3.38599085]
[1727212244619,3.359,148.85,148.75,6.7221]
[1727212245718,2.7715,148.9,148.76,6.7217]
[1727212245919,2.7715,148.9,148.83,3.3592]
[1727212246311,3.3588,148.86,148.83,3.3592]
[1727212252117,3.3588,148.86,148.84,3.3591]
[1727212253322,3.3585,148.87,148.84,3.3591]
[1727212254926,2.7715,148.9,148.86,3.3586]
[1727212254927,3.3582,148.88,148.86,3.3586]
[1727212257923,3.3584,148.87,148.84,3.359]
[1727212258228,2.7715,148.9,148.77,1.3717]
[1727212258428,2.7715,148.9,148.77,4.68330102]
[1727212258623,3.3585,148.87,148.85,3.3589]
[1727212259623,2.7715,148.9,148.84,3.3589]
[1727212260223,3.3586,148.87,148.84,3.3589]
[1727212261024,3.3586,148.87,148.83,3.3592]
[1727212261425,3.3587,148.86,148.83,3.3592]
[1727212266038,2.7715,148.9,148.84,3.359]
[1727212266039,3.3585,148.87,148.84,3.359]
[1727212266334,2.7715,148.9,148.8,3.41869419]
[1727212266541,3.3586,148.87,148.83,3.3592]
[1727212269147,3.3587,148.86,148.83,3.3592]
[1727212269541,3.3585,148.87,148.84,3.359]
[1727212270041,2.7715,148.9,148.77,1.3717]
[1727212270245,3.3587,148.86,148.83,3.3592]
[1727212271248,3.3587,148.86,148.84,3.3591]
[1727212271945,3.3586,148.87,148.84,3.3591]
[1727212282354,3.3586,148.87,148.85,3.3589]
[1727212283252,3.3586,148.87,148.84,3.359]
[1727212284555,3.3587,148.86,148.83,3.3593]
[1727212284847,3.3587,148.86,148.8,3.33781647]
[1727212285856,3.3587,148.86,148.84,3.3591]
[1727212288159,2.7715,148.9,148.77,1.3717]
[1727212288663,3.3597,148.82,148.79,3.3602]
[1727212289462,3.3597,148.82,148.8,3.36]
[1727212289662,2.7715,148.9,148.77,1.3717]
[1727212289860,2.7715,148.9,148.83,3.3593]
[1727212290564,3.3588,148.86,148.83,3.3593]
[1727212291759,3.3589,148.85,148.83,3.3593]
[1727212292154,10.0615,149.08,148.77,1.3717]
[1727212292468,4.1396,149.0,148.78,6.45853422]
[1727212292658,3.3574,148.92,148.88,3.358]
[1727212293155,3.3574,148.92,148.89,3.3579]
[1727212293465,3.3576,148.91,148.86,3.32694977]
[1727212293655,3.3576,148.91,148.79,8.0884]
[1727212293856,3.3576,148.91,148.88,3.358]
[1727212295162,17.58291017,149.0,148.86,3.34644493]
[1727212295365,17.58291017,149.0,148.79,8.0884]
[1727212295561,3.3571,148.93,148.89,3.3578]
[1727212296068,17.58291017,149.0,148.88,3.3581]
[1727212296359,17.58291017,149.0,148.85,3.41441559]
[1727212296564,17.58291017,149.0,148.89,3.358]
[1727212298059,3.3574,148.92,148.89,3.358]
[1727212309973,3.28719258,148.94,148.88,3.3581]
[1727212310166,4.0355,148.93,148.88,3.3581]
[1727212310371,7.43647698,148.93,148.84,80.16732877]
[1727212310771,3.3575,148.92,148.89,3.358]
[1727212314969,3.3586,148.87,148.84,83.52632877]
[1727212315170,4.0355,148.93,148.82,3.37309186]
[1727212315369,4.0355,148.93,148.8,1.3467]
[1727212315575,4.0355,148.93,148.85,3.3587]
[1727212315778,4.0355,148.93,148.8,1.3467]
[1727212315970,4.0355,148.93,148.84,3.3589]
[1727212316177,4.0355,148.93,148.8,1.3467]
[1727212316573,3.3587,148.86,148.83,3.3591]
[1727212317686,3.3585,148.87,148.83,3.3591]
[1727212320379,4.0355,148.93,148.7,6.7244]
[1727212320575,4.0355,148.93,148.73,2.6105]
[1727212320888,4.0355,148.93,148.81,3.3597]
[1727212321387,3.3588,148.86,148.81,3.3597]
[1727212321577,6.65975455,148.86,148.81,3.3597]
[1727212324885,6.65975455,148.86,148.76,3.31708792]
[1727212325080,17.41182719,148.93,148.73,2.6105]
[1727212325282,4.0355,148.93,148.73,2.6105]
[1727212325484,4.0355,148.93,148.74,6.47744109]
[1727212325679,3.3576,148.91,148.75,6.47744109]
[1727212325881,6.78393654,148.91,148.76,6.47744109]
[1727212326077,3.3576,148.91,148.77,6.47744109]
[1727212326276,6.79032332,148.91,148.87,3.3583]
[1727212326484,3.3576,148.91,148.87,3.3583]
[1727212327189,6.7455965,148.91,148.87,3.3583]
[1727212327488,3.3576,148.91,148.87,3.3583]
[1727212327683,3.3576,148.91,148.88,3.3581]
[1727212328189,3.3576,148.91,148.82,3.28649979]
[1727212328384,3.3576,148.91,148.86,3.3584]
[1727212328888,3.3576,148.91,148.82,3.27878217]
[1727212329089,6.6572169,148.91,148.87,3.3584]
[1727212329997,3.2996169,148.91,148.77,6.7212]
[1727212330286,4.0355,148.93,148.78,6.47735745]
[1727212330483,3.3579,148.9,148.86,3.3586]
[1727212330887,7.35830395,148.93,148.81,9.89324561]
[1727212331185,7.35830395,148.93,148.8,2.7603]
[1727212331489,3.3574,148.92,148.88,3.358]
[1727212332390,3.3575,148.91,148.88,3.358]
[1727212333184,3.3579,148.9,148.86,3.3585]
[1727212337187,3.3577,148.91,148.82,3.43167507]
[1727212337487,3.3577,148.91,148.8,2.7603]
[1727212337689,3.3577,148.91,148.87,3.3582]
[1727212338594,3.3577,148.91,148.88,3.3582]
[1727212340692,7.35830395,148.93,148.82,3.36212111]
[1727212340895,4.0355,148.93,148.8,2.7603]
[1727212341091,4.0355,148.93,148.81,6.47980771]
[1727212341292,7.3927,148.93,148.82,6.47980771]
[1727212341597,7.3927,148.93,148.83,6.47980771]
[1727212341798,7.3927,148.93,148.81,10.1060773]
[1727212342002,7.3927,148.93,148.89,3.3578]
[1727212342896,3.3573,148.92,148.89,3.3578]
[1727212344606,7.3927,148.93,148.9,3.3576]
[1727212345609,3.3573,148.92,148.9,3.3576]
[1727212347606,3.3573,148.92,148.89,3.3579]
[1727212348406,4.0355,148.93,148.87,3.3583]
[1727212349009,3.3579,148.9,148.87,3.3583]
[1727212351116,4.0355,148.93,148.85,3.3587]
[1727212352221,3.3581,148.89,148.86,3.3586]
[1727212354508,3.3579,148.9,148.82,6.48342966]
[1727212354708,3.3579,148.9,148.81,3.44097862]
[1727212354921,3.3579,148.9,148.86,3.3584]
[1727212355713,3.3579,148.9,148.87,3.3584]
[1727212358812,4.0355,148.93,148.8,2.7603]
[1727212359524,3.3586,148.87,148.84,3.359]
[1727212364623,3.3583,148.88,148.85,3.3589]
[1727212368136,4.0355,148.93,148.74,86.92267692]
[1727212368334,2.7618,148.87,148.75,9.26471197]
[1727212368631,1.3147,148.86,148.76,6.48811197]
[1727212368834,1.3147,148.86,148.77,6.48811197]
[1727212369035,4.75762053,148.86,148.78,6.48811197]
[1727212369235,4.75762053,148.86,148.75,2.7766]
[1727212369438,4.75762053,148.86,148.76,6.48779907]
[1727212369634,4.75762053,148.86,148.75,2.7766]
[1727212369838,3.3592,148.84,148.81,3.3597]
[1727212371338,3.3593,148.83,148.8,3.3599]
[1727212372536,3.3594,148.83,148.75,2.7766]
[1727212373236,3.3594,148.83,148.79,3.36]
[1727212373630,3.3594,148.83,148.75,2.7858]
[1727212374538,3.3591,148.84,148.75,2.7858]
[1727212374840,3.3591,148.84,148.76,6.48215918]
[1727212375042,3.3591,148.84,148.8,3.3598]
[1727212375633,3.3591,148.84,148.81,3.3598]
[1727212377941,4.75762053,148.86,148.8,3.3599]
[1727212377942,3.3593,148.83,148.8,3.3599]
[1727212379231,4.75762053,148.86,148.75,2.7858]
[1727212379444,3.3591,148.84,148.81,3.3597]
[1727212385737,3.3593,148.83,148.81,3.3597]
[1727212386134,3.3593,148.83,148.8,3.3599]
[1727212392147,3.3592,148.84,148.81,3.3597]
[1727212393549,3.3594,148.83,148.8,3.3599]
[1727212394045,3.3598,148.81,148.78,3.3602]
[1727212394935,3.3598,148.81,148.75,2.7858]
[1727212395141,3.3597,148.82,148.79,3.3602]
[1727212395948,3.3595,148.83,148.75,2.7858]
[1727212396146,4.75762053,148.86,148.75,2.7858]
[1727212396547,3.3594,148.83,148.79,3.3602]
[1727212403960,3.3597,148.82,148.78,3.3603]
[1727212404552,3.36,148.81,148.77,3.3606]
[1727212406457,3.36,148.8,148.77,3.3606]
[1727212408650,4.75762053,148.86,148.78,3.3602]
[1727212409057,3.3599,148.81,148.78,3.3602]